fUSD/lending_fUSD_20240601
["ID","MTS","AMOUNT","RATE_DAILY","PERIOD"]
[328373654,1717273835075,-151.68,0.0003329,2]
[328373655,1717273835085,-151.68,0.0003329,2]
[328373656,1717273835094,-1196.59,0.0003329,2]
[328373657,1717273835104,-1196.59,0.0003329,2]
[328373658,1717273835114,-151.68,0.0003329,2]
[328373659,1717273835123,-1196.59,0.0003329,2]
[328373660,1717273835133,-151.68,0.0003329,2]
[328373661,1717273835143,-1196.59,0.0003329,2]
[328373662,1717273835153,-151.68,0.0003329,2]
[328373663,1717273835163,-1196.59,0.0003329,2]
[328373664,1717273835172,-1196.59,0.0003329,2]
[328373665,1717273835182,-1196.59,0.0003329,2]
[328373666,1717273835192,-150.0,0.00033297,2]
[328373667,1717273835201,-298.55892673,0.00033298,4]
[328373668,1717273835211,-1776.43097931,0.00033298,4]
[328373669,1717273835221,-6781.62469365,0.00033298,4]
[328373670,1717273835231,-325.39983263,0.00033298,4]
[328373671,1717273835240,-59796.49262983,0.00033298,2]
[328373672,1717273835250,-2050.98113024,0.00033298,4]
[328373673,1717273835259,-2153.71821589,0.00033298,4]
[328373674,1717273835269,-823.33343502,0.00033298,2]
[328373675,1717273835279,-1821.49577145,0.00033298,4]
[328373676,1717273835288,-155.0,0.00033298,4]
[328373677,1717273835298,-23543.53052793,0.00033298,5]
[328373678,1717273835308,-163.79754972,0.00033298,4]
[328373679,1717273835318,-271.72996379,0.00033298,4]
[328373680,1717273835327,-523.7184599,0.00033298,4]
[328373681,1717273835337,-155.0,0.00033298,4]
[328373682,1717273835347,-634.50759008,0.00033298,4]
[328373683,1717273835357,-863.06900647,0.00033298,3]
[328373684,1717273835367,-1143.95954077,0.00033298,4]
[328373685,1717273835377,-2003.2277311,0.00033298,4]
[328373686,1717273835387,-5572.40323607,0.00033298,4]
[328373687,1717273835396,-500.0,0.00033298,2]
[328373688,1717273835405,-155.61412597,0.00033298,7]
[328373689,1717273835415,-52042.58202789,0.00033299,4]
[328373690,1717273835429,-2858.7856,0.00033299,4]
[328373691,1717273835441,-1050.0,0.00033299,4]
[328373692,1717273835452,-2668.90190579,0.00033299,4]
[328373693,1717273835463,-500.0,0.00033299,2]
[328373694,1717273835473,-500.0,0.00033299,2]
[328373695,1717273835482,-500.0,0.00033299,2]
[328373696,1717273835492,-312.07531592,0.00033299,2]
[328373697,1717273835502,-500.0,0.00033299,11]
[328373698,1717273835511,-500.0,0.00033299,11]
[328373699,1717273835522,-330.00093554,0.00033299,11]
[328373700,1717273835531,-500.0,0.00033299,11]
[328373701,1717273835541,-500.0,0.00033299,11]
[328373702,1717273835550,-500.0,0.00033299,11]
[328373703,1717273835559,-500.0,0.00033299,11]
[328373704,1717273835569,-500.0,0.00033299,11]
[328373705,1717273835578,-500.0,0.00033299,11]
[328373706,1717273835587,-507.38657051,0.00033299,11]
[328373707,1717273835596,-667.24,0.00033299,11]
[328373708,1717273835607,-667.24,0.00033299,11]
[328373709,1717273835616,-667.24,0.00033299,11]
[328373710,1717273835626,-667.24,0.00033299,11]
[328373711,1717273835635,-667.24,0.00033299,11]
[328373712,1717273835645,-667.24,0.00033299,11]
[328373713,1717273835654,-667.24,0.00033299,11]
[328373714,1717273835663,-667.24,0.00033299,11]
[328373715,1717273835675,-667.24,0.00033299,11]
[328373716,1717273835686,-667.24,0.00033299,11]
[328373717,1717273835695,-667.24,0.00033299,11]
[328373718,1717273835705,-667.24,0.00033299,11]
[328373719,1717273835715,-667.24,0.00033299,11]
[328373720,1717273835724,-667.24,0.00033299,11]
[328373721,1717273835734,-667.24,0.00033299,11]
[328373722,1717273835743,-667.24,0.00033299,11]
[328373723,1717273835753,-667.24,0.00033299,11]
[328373724,1717273835763,-667.24,0.00033299,11]
[328373725,1717273835775,-667.32678908,0.00033299,11]
[328373726,1717273835784,-500.0,0.00033299,11]
[328373727,1717273835794,-500.0,0.00033299,11]
[328373728,1717273835803,-500.0,0.00033299,11]
[328373729,1717273835812,-500.0,0.00033299,11]
[328373730,1717273835822,-500.0,0.00033299,11]
[328373731,1717273835831,-500.16371308,0.00033299,11]
[328373732,1717273835841,-500.0,0.00033299,11]
[328373733,1717273835850,-500.0,0.00033299,11]
[328373734,1717273835860,-500.0,0.00033299,11]
[328373735,1717273835869,-500.0,0.00033299,11]
[328373736,1717273835879,-39.01635715,0.00033299,11]
[328373737,1717273835892,-460.98364285,0.00033299,11]
[328373738,1717273835901,-36.09699197,0.00033299,11]
[328373739,1717273835914,-372.34542623,0.00033299,11]
[328373740,1717273835924,-500.0,0.00033299,11]
[328373741,1717273835934,-500.0,0.00033299,11]
[328373742,1717273835943,-27.65451377,0.00033299,11]
[328373750,1717273838378,-168.10608322,0.00032773,2]
[328373751,1717273838388,-2796.49005921,0.00033082,10]
[328373752,1717273838397,-284.16443433,0.0003314,2]
[328373753,1717273838407,-314.23597978,0.00033177,2]
[328373754,1717273838417,-16861.46696454,0.000332,2]
[328373755,1717273838427,-574.29979503,0.00033299,11]
[328373756,1717273838437,-288.78101189,0.00033299,11]
[328373757,1717273838446,-500.0,0.00033299,11]
[328373758,1717273838455,-500.0,0.00033299,11]
[328373759,1717273838465,-500.0,0.00033299,11]
[328373760,1717273838475,-500.0,0.00033299,11]
[328373761,1717273838484,-500.0,0.00033299,11]
[328373762,1717273838494,-500.0,0.00033299,11]
[328373763,1717273838503,-500.0,0.00033299,11]
[328373764,1717273838513,-500.0,0.00033299,11]
[328373765,1717273838522,-500.0,0.00033299,11]
[328373766,1717273838532,-500.0,0.00033299,11]
[328373767,1717273838541,-500.0,0.00033299,11]
[328373768,1717273838550,-500.0,0.00033299,11]
[328373769,1717273838560,-500.0,0.00033299,11]
[328373770,1717273838570,-500.0,0.00033299,11]
[328373771,1717273838579,-500.0,0.00033299,11]
[328373772,1717273838589,-500.0,0.00033299,11]
[328373773,1717273838598,-500.0,0.00033299,11]
[328373774,1717273838608,-500.0,0.00033299,11]
[328373775,1717273838617,-500.0,0.00033299,11]
[328373776,1717273838627,-415.73,0.00033299,11]
[328373777,1717273838636,-500.0,0.00033299,11]
[328373778,1717273838646,-500.0,0.00033299,11]
[328373779,1717273838656,-500.0,0.00033299,11]
[328373780,1717273838665,-500.0,0.00033299,11]
[328373781,1717273838678,-500.0,0.00033299,11]
[328373782,1717273838688,-494.39238651,0.00033299,11]
[328373783,1717273838700,-34.31427737,0.00033299,11]
[328373784,1717273838710,-500.0,0.00033299,2]
[328373785,1717273838719,-156.54672263,0.00033299,2]
[328373786,1717273838731,-343.45327737,0.00033299,2]
[328373787,1717273838741,-196.3477227,0.00033299,2]
[328373788,1717273838750,-500.0,0.00033299,11]
[328373789,1717273838760,-500.0,0.00033299,11]
[328373790,1717273838771,-500.0,0.00033299,11]
[328373791,1717273838781,-500.0,0.00033299,11]
[328373792,1717273838791,-500.0,0.00033299,11]
[328373793,1717273838801,-500.0,0.00033299,11]
[328373794,1717273838810,-500.0,0.00033299,11]
[328373795,1717273838820,-500.0,0.00033299,11]
[328373796,1717273838830,-231.04,0.00033299,11]
[328373798,1717273838839,-157.02569542,0.000333,2]
[328373800,1717273838849,-32594.63330496,0.000333,11]
[328373803,1717273838861,-503.49808422,0.000333,11]
[328373805,1717273838873,-1675.32172713,0.000333,11]
[328373807,1717273838884,-2104.50493753,0.000333,11]
[328373809,1717273838896,-296.71999953,0.000333,11]
[328373810,1717273838908,-15550.0,0.000333,11]
[328373826,1717273840975,-380.095,0.0003277,2]
[328373829,1717273840987,-1089.72879562,0.0003277,2]
[328373842,1717273841093,-3599.50910438,0.0003277,2]
[328373844,1717273841103,-284.16443433,0.000332,2]
[328373845,1717273841112,-2796.49005921,0.000332,10]
[328373846,1717273841121,-821.34,0.0003329,10]
[328373847,1717273841131,-159.43600293,0.000333,11]
[328373884,1717273841893,-150.0,0.00032182,2]
[328373885,1717273841903,-591.079999,0.00032775,2]
[328373886,1717273841916,-1642.8995,0.00032775,2]
[328373887,1717273841956,-5266.020501,0.00032775,2]
[328373888,1717273841965,-1697.95046975,0.000333,11]
[328373889,1717273841978,-2200.86629202,0.000333,11]
[328373890,1717273841988,-4653.13370798,0.000333,5]
[328373891,1717273842015,-500.35141074,0.000333,5]
[328373892,1717273842027,-2176.15340174,0.000333,5]
[328373922,1717273843484,-150.0,0.00033041,2]
[328373924,1717273843493,-165.0,0.000333,5]
[328373926,1717273843503,-195.75900823,0.000333,5]
[328373928,1717273843514,-2204.58366367,0.000333,5]
[328373930,1717273843526,-383.48999995,0.000333,5]
[328373932,1717273843537,-3412.5,0.000333,5]
[328373935,1717273843553,-3319.68879838,0.000333,5]
[328373937,1717273843564,-19613.23132792,0.000333,5]
[328373939,1717273843575,-1030302.01087723,0.000333,5]
[328373963,1717273843798,-3272.74963024,0.000333,5]
[328373970,1717273843865,-6860.5,0.000333,5]
[328374003,1717273846484,-871.7663488,0.00033299,4]
[328374004,1717273846494,-4990.7336512,0.000333,5]
[328374005,1717273846974,-562.40268705,0.000333,5]
[328374006,1717273846986,-2042.47404241,0.000333,5]
[328374011,1717274023307,1427670.21289746,0.00014,2]
[328374012,1717274046151,40491.5795095,0.000118,2]
[328374013,1717274053244,13106.80311711,0.00011,2]
[328374014,1717274160448,5009.15892953,0.0001305,2]
[328374015,1717274196087,18186.90754574,0.0001,2]
[328374016,1717274218799,1000.0,0.000135,2]
[328374017,1717274223204,241.09803288,0.00013432,30]
[328374018,1717274369567,208.04,0.00029808,30]
[328374019,1717274519138,1037.0,0.00034967,30]
[328374020,1717274529957,1037.0,0.00034967,30]
[328374021,1717274831244,300.0,0.000133,4]
[328374022,1717274833264,600.0,0.000134,4]
[328374023,1717274835366,900.0,0.000135,4]
[328374024,1717274837467,1200.0,0.000136,4]
[328374025,1717274998697,190.7,0.00029808,30]
[328374038,1717275031533,-300.0,0.000137,5]
[328374043,1717275031705,-1200.0,0.000137,5]
[328374044,1717275031714,-300.0,0.000138,5]
[328374045,1717275031723,-300.0,0.000139,5]
[328374046,1717275031733,-226.4776511,0.000139,2]
[328374047,1717275031742,-168.10608323,0.000139,2]
[328374048,1717275031751,-60551.53573795,0.00014,2]
[328374049,1717275031763,-632.46840949,0.00014,2]
[328374050,1717275031774,-5200.0,0.00014,2]
[328374051,1717275031820,-1394.57802,0.00014,2]
[328374052,1717275031831,-23244.28694852,0.00014,2]
[328374053,1717275031886,-336681.53389607,0.00014,2]
[328374062,1717275037560,-928.12833266,0.00014,2]
[328374063,1717275037617,-697.76274,0.00014,2]
[328374064,1717275037629,-810.16228092,0.00014,2]
[328374065,1717275037736,-21774.56130596,0.00014,2]
[328374066,1717275037747,-2061.84358509,0.00014,2]
[328374084,1717275041098,-11740.52832341,0.00014,2]
[328374085,1717275041326,-358.35815609,0.00014,2]
[328374089,1717275042895,-254.81243994,0.000139,2]
[328374090,1717275042907,-64.72545644,0.000139,2]
[328374091,1717275042917,-1286.86160879,0.00014,2]
[328374092,1717275043120,-2651.34418105,0.00014,2]
[328374093,1717275043132,-418.30973814,0.00014,2]
[328374094,1717275043143,-842.79017217,0.00014,2]
[328374097,1717275045796,-1338.62,0.00014,2]
[328374108,1717275082021,300.0,0.000133,4]
[328374109,1717275084147,700.0,0.000134,4]
[328374110,1717275086266,1100.0,0.000135,4]
[328374111,1717275088401,1500.0,0.000136,4]
[328374112,1717275509118,174.8,0.00029808,30]
[328374115,1717275948397,14149.0805,0.00013599,2]
[328374116,1717276032861,200.0,0.000133,4]
[328374117,1717276034955,500.0,0.000134,4]
[328374118,1717276037046,800.0,0.000135,4]
[328374119,1717276039144,1100.0,0.000136,4]
[328374123,1717276220987,160.23,0.00029808,30]
[328374124,1717276231837,-314.61116199,0.00013697,2]
[328374125,1717276231847,-897.67753786,0.00013698,2]
[328374126,1717276231857,-1400.0,0.000137,5]
[328374127,1717276231868,-380.70037141,0.00013726,2]
[328374128,1717276231877,-200.0,0.000138,5]
[328374129,1717276231888,-2216.55812,0.0001386,2]
[328374130,1717276231898,-3071.29778177,0.0001389,2]
[328374131,1717276231908,-1417.56898961,0.000139,2]
[328374132,1717276231923,-956.0721124,0.000139,2]
[328374133,1717276231936,-960.42655982,0.000139,2]
[328374134,1717276231948,-5801.46363943,0.000139,2]
[328374135,1717276231968,-1150.65467205,0.000139,2]
[328374136,1717276231980,-839.20286435,0.000139,2]
[328374137,1717276231991,-2400.0,0.000139,2]
[328374138,1717276232004,-535.511,0.000139,2]
[328374139,1717276232016,-33416.75606234,0.000139,2]
[328374140,1717276232026,-1000.0,0.000139,2]
[328374141,1717276232036,-200.0,0.000139,5]
[328374142,1717276232045,-657.6233,0.000139,2]
[328374143,1717276232055,-1047.29715187,0.000139,2]
[328374144,1717276232067,-538.04640576,0.000139,2]
[328374145,1717276232076,-208.51524201,0.00013998,2]
[328374146,1717276232089,-830.08689098,0.00013998,2]
[328374147,1717276232105,-753.28386078,0.00013998,2]
[328374148,1717276232117,-377.4403719,0.00013999,2]
[328374149,1717276232128,-2866.52964952,0.00014,2]
[328374150,1717276232139,-500.0,0.00014,2]
[328374151,1717276232229,-2068.6955256,0.00014,2]
[328374154,1717276237817,-3062.67819403,0.00014,2]
[328374155,1717276237829,-6940.0773975,0.00014,2]
[328374156,1717276237843,-17536.23838421,0.00014,2]
[328374157,1717276237871,-3726.19972867,0.00014,2]
[328374158,1717276237883,-7706.84209174,0.00014,2]
[328374159,1717276237894,-807.04598073,0.00014,2]
[328374160,1717276237906,-775.44461026,0.00014,2]
[328374161,1717276237918,-1151.7587563,0.00014,2]
[328374162,1717276237929,-500.0,0.00014,2]
[328374163,1717276237941,-586.36577861,0.00014,2]
[328374164,1717276237953,-774.91831638,0.00014,2]
[328374165,1717276237964,-2058.67543,0.00014,2]
[328374166,1717276237976,-444.11719502,0.00014,2]
[328374167,1717276237987,-3703.42156512,0.00014,2]
[328374168,1717276237999,-790.78038868,0.00014,2]
[328374169,1717276238010,-1729.55783652,0.00014,2]
[328374170,1717276238022,-16169.82675154,0.00014,2]
[328374171,1717276238033,-318.54331447,0.00014,2]
[328374172,1717276238045,-529.82133345,0.00014,2]
[328374173,1717276238229,-999.05068868,0.00014,2]
[328374174,1717276238242,-9394.007581,0.00014,2]
[328374175,1717276238257,-4920.40179236,0.00014,2]
[328374176,1717276238268,-1391.18950319,0.00014,2]
[328374177,1717276238288,-7229.20000001,0.00014,2]
[328374179,1717276238301,-5115.04327528,0.00014,2]
[328374181,1717276238313,-7247.88125866,0.00014,2]
[328374182,1717276238325,-7154.86799684,0.00014,2]
[328374183,1717276238338,-9901.01985224,0.00014,2]
[328374184,1717276238349,-5085.22599903,0.00014,2]
[328374185,1717276238361,-7040.3643225,0.00014,2]
[328374186,1717276238372,-3162.31470448,0.00014,2]
[328374187,1717276238383,-1130.59189516,0.00014,2]
[328374188,1717276238394,-668.631026,0.00014,2]
[328374201,1717276240489,-857.69234347,0.00014,2]
[328374203,1717276240501,-2133.5163344,0.00014,2]
[328374206,1717276240517,-813.78799327,0.00014,2]
[328374218,1717276240628,-8724.05439088,0.00014,2]
[328374236,1717276241331,-129387.91195927,0.00014,2]
[328374237,1717276241344,-671.11125443,0.00014,2]
[328374238,1717276241356,-2788.00917493,0.00014,2]
[328374239,1717276241368,-2041.22415635,0.00014,2]
[328374240,1717276241380,-1829.58963624,0.00014,2]
[328374241,1717276241391,-380.595,0.00014,2]
[328374242,1717276241402,-1532.83233641,0.00014,2]
[328374243,1717276241440,-366.976,0.00014,2]
[328374244,1717276241451,-1198.68,0.00014,2]
[328374250,1717276242921,-1396.85367872,0.00014,2]
[328374252,1717276242949,-1078.79243425,0.00014,2]
[328374253,1717276243050,-622.24139103,0.00014,2]
[328374254,1717276243185,-4709.63530733,0.00014,2]
[328374255,1717276243282,-2747.62783916,0.00014,2]
[328374256,1717276243295,-1640.91763236,0.00014,2]
[328374257,1717276243307,-975.40414729,0.00014,2]
[328374259,1717276243318,-1299.7799031,0.00014,2]
[328374261,1717276243330,-1133.20005046,0.00014,2]
[328374262,1717276246307,-313.11914675,0.00013999,2]
[328374263,1717276246318,-603081.34567723,0.00014,2]
[328374264,1717276246333,-5058.21780691,0.00014,2]
[328374265,1717276246346,-498.48057,0.00014,2]
[328374266,1717276246356,-608.0,0.00014,2]
[328374267,1717276246367,-80074.38165573,0.00014,2]
[328374331,1717276260554,825.93473292,0.00013299,2]
[328374332,1717276299134,204.20305472,0.00012598,2]
[328374333,1717276307774,2608.8821037,0.00013033,2]
[328374334,1717276312181,19755.82831877,0.00013299,2]
[328374335,1717276315666,362.58726767,0.00013299,2]
[328374336,1717276316539,1299.84451728,0.00013298,2]
[328374337,1717276321867,2608.8821037,0.00013033,2]
[328374338,1717276328102,8036.77715019,0.00013299,2]
[328374339,1717276335665,361.8736893,0.00013299,2]
[328374340,1717276343776,2606.45952909,0.00013033,2]
[328374341,1717276357785,1953.43043877,0.00013033,2]
[328374343,1717276367254,83046.8793325,0.00013299,2]
[328374346,1717276515699,500.0,0.00013599,2]
[328374347,1717276516122,500.0,0.00013599,2]
[328374348,1717276516517,500.0,0.00013599,2]
[328374349,1717276516870,567.0,0.00013599,2]
[328374352,1717276663240,166.060205,0.00031,32]
[328374357,1717276893607,160.23,0.00029808,30]
[328374363,1717277053460,507.34,0.00012929,2]
[328374366,1717277250161,-475.49481234,0.000139,2]
[328374377,1717277432183,-391.85679535,0.0001386,2]
[328374378,1717277432464,-1455.27497465,0.0001386,2]
[328374379,1717277432474,-99524.50518766,0.000139,2]
[328374380,1717277432484,-1000.0,0.000139,2]
[328374381,1717277432493,-653.28239152,0.000139,2]
[328374382,1717277432503,-168.10608322,0.000139,2]
[328374383,1717277432512,-181.58574314,0.000139,2]
[328374384,1717277432521,-319.57287822,0.000139,2]
[328374385,1717277432530,-156.19946984,0.00013998,2]
[328374386,1717277432540,-277.55993092,0.00013999,2]
[328374387,1717277432551,-410310.21301755,0.00014,2]
[328374388,1717277432570,-1305.64038624,0.00014,2]
[328374389,1717277432581,-1168.69846182,0.00014,2]
[328374390,1717277432593,-10245.9752321,0.00014,2]
[328374403,1717277439304,-1001.70124027,0.00014,2]
[328374404,1717277439342,-400.0,0.00014,2]
[328374409,1717277441933,-504.08999982,0.00014,2]
[328374410,1717277441946,-1804.10449151,0.00014,2]
[328374411,1717277442044,-81305.88703062,0.00014,2]
[328374412,1717277442061,-52678.40144488,0.00014,2]
[328374413,1717277442161,-922.62999989,0.00014,2]
[328374464,1717277443718,-2351.41446697,0.00014,2]
[328374465,1717277443751,-91068.39571582,0.00014,2]
[328374466,1717277443883,-2197.95573351,0.00014,2]
[328374467,1717277443940,-403.52505848,0.00014,2]
[328374468,1717277443952,-771.71644286,0.00014,2]
[328374470,1717277446208,-2182.85966261,0.00014,2]
[328374471,1717277446248,-5970.17357935,0.00014,2]
[328374472,1717277446266,-113754.40364488,0.00014,2]
[328374473,1717277446278,-32894.84180086,0.00014,2]
[328374474,1717277446305,-18480.78991837,0.00014,2]
[328374488,1717277669677,505.1,0.00013377,2]
[328374489,1717277694866,160.23,0.00029808,30]
[328374494,1717278185502,479.84,0.0001142,2]
[328374495,1717278311031,160.23,0.00029808,30]
[328374510,1717278631643,-479.84,0.00013684,2]
[328374511,1717278631655,-167.88887997,0.00013859,2]
[328374512,1717278631666,-314.4238,0.000139,2]
[328374513,1717278631675,-340.1207476,0.000139,2]
[328374514,1717278631686,-258.72144459,0.000139,2]
[328374515,1717278631695,-624.22669755,0.000139,2]
[328374516,1717278631704,-181.58574314,0.000139,2]
[328374517,1717278631713,-241.70611472,0.000139,2]
[328374518,1717278631725,-77.8667635,0.000139,2]
[328374519,1717278631735,-325.4572365,0.00013917,2]
[328374520,1717278631750,-298.76946104,0.00013917,2]
[328374521,1717278631759,-624.22669754,0.00013935,2]
[328374522,1717278631769,-624.22669754,0.00013952,2]
[328374523,1717278631778,-624.22669754,0.0001397,2]
[328374524,1717278631787,-150.0,0.00013973,2]
[328374525,1717278631797,-624.22669754,0.00013987,2]
[328374526,1717278631806,-784.97137019,0.00013999,2]
[328374528,1717278631816,-120.54321159,0.00013999,5]
[328374530,1717278631827,-879.45678841,0.00013999,5]
[328374531,1717278631836,-385.64951509,0.00013999,5]
[328374532,1717278631847,-614.35048491,0.00013999,5]
[328374533,1717278631856,-679.86763975,0.00013999,5]
[328374534,1717278631867,-320.13236025,0.00013999,5]
[328374535,1717278631878,-1000.0,0.00013999,5]
[328374536,1717278631887,-233.09416368,0.00013999,5]
[328374681,1717278642505,-766.90583632,0.00013999,5]
[328374682,1717278642516,-924.67103649,0.00013999,5]
[328374683,1717278642526,-21935.45096719,0.00014,2]
[328374684,1717278642538,-9324.34208663,0.00014,2]
[328374685,1717278642571,-2252.10097326,0.00014,2]
[328374686,1717278642644,-1851.10110939,0.00014,2]
[328374687,1717278642656,-9897.31049829,0.00014,2]
[328374688,1717278642710,-7849.15123103,0.00014,2]
[328374689,1717278642774,-1677.82410151,0.00014,2]
[328374731,1717278645533,-954.82496255,0.00014,2]
[328374732,1717278646247,-2085.163727,0.00014,2]
[328374733,1717278646259,-1038.84,0.00014,2]
[328374734,1717278646270,-44168.19794733,0.00014,2]
[328374736,1717278674025,400.0,0.000133,4]
[328374737,1717278676115,800.0,0.000134,4]
[328374738,1717278677632,607.56054887,0.00012458,2]
[328374739,1717278678212,1200.0,0.000135,4]
[328374740,1717278680407,1600.0,0.000136,4]
[328374741,1717278758693,2000.0,0.00034873,30]
[328374742,1717278759103,2000.0,0.00034873,30]
[328374743,1717278759446,2000.0,0.00034873,30]
[328374744,1717278760060,2000.0,0.00034873,30]
[328374745,1717278760399,2000.0,0.00034873,30]
[328374746,1717278760775,2000.0,0.00034873,30]
[328374747,1717278761184,1037.199999,0.00034873,30]
[328374749,1717278811109,160.23,0.00029808,30]
[328374750,1717278860476,431.85,0.00012907,2]
[328374751,1717279064634,190.0,0.00034873,30]
[328374752,1717279201317,1500.0,0.00031,30]
[328374753,1717279358197,1284.8,0.00034883,30]
[328374754,1717279386022,160.23,0.00029808,30]
[328374755,1717279422602,23900.0,0.00013511,2]
[328374756,1717279441155,410.25,0.00011767,2]
[328374757,1717279663288,186.0,0.00034883,30]
[328374782,1717279831797,-303.8,0.00013698,2]
[328374783,1717279831810,-362.84660977,0.00013698,2]
[328374784,1717279831844,-493.40856056,0.00013698,2]
[328374785,1717279831854,-1256.81504858,0.00013699,2]
[328374786,1717279831865,-646.60495142,0.00013699,2]
[328374787,1717279831876,-556.15,0.00013849,2]
[328374788,1717279831886,-3000.0,0.0001386,2]
[328374789,1717279831898,-548.93867622,0.000139,2]
[328374790,1717279831908,-156.05667442,0.000139,2]
[328374791,1717279831919,-156.05667438,0.00013904,2]
[328374792,1717279831929,-156.05667438,0.00013909,2]
[328374793,1717279831939,-156.05667438,0.00013913,2]
[328374794,1717279831948,-156.05667438,0.00013918,2]
[328374795,1717279831958,-156.05667438,0.00013922,2]
[328374796,1717279831967,-156.05667438,0.00013927,2]
[328374797,1717279831978,-1289.33,0.00013929,2]
[328374798,1717279831987,-250.0,0.00013929,2]
[328374799,1717279831996,-156.05667438,0.00013931,2]
[328374800,1717279832006,-152.52,0.0001399,2]
[328374801,1717279832015,-152.52,0.0001399,2]
[328374803,1717279832024,-160.8020285,0.0001399,2]
[328374805,1717279832034,-529.56363621,0.00013998,2]
[328374806,1717279832043,-323.59622047,0.00013998,2]
[328374807,1717279832053,-6152.6618521,0.00014,2]
[328374810,1717279832069,-512.85,0.00014,2]
[328374812,1717279832081,-510.3000105,0.00014,2]
[328374814,1717279832092,-599.89049949,0.00014,2]
[328374817,1717279832103,-310.82808125,0.00014,2]
[328374821,1717279837606,-751.74894138,0.00014,2]
[328374822,1717279837618,-795.2682055,0.00014,2]
[328374823,1717279837629,-1007.38297438,0.00014,2]
[328374824,1717279837653,-633.84,0.00014,2]
[328374825,1717279837664,-688.30520627,0.00014,2]
[328374826,1717279837703,-10391.0,0.00014,2]
[328374827,1717279837716,-965.1429323,0.00014,2]
[328374828,1717279837853,-10816.66281497,0.00014,2]
[328374829,1717279837865,-10859.41738551,0.00014,2]
[328374830,1717279837876,-47400.52224499,0.00014,2]
[328374831,1717279837888,-1184.50613837,0.00014,2]
[328374832,1717279837904,-60504.6405431,0.00014,2]
[328374833,1717279837918,-22230.81641486,0.00014,2]
[328374834,1717279837929,-4572.78453988,0.00014,2]
[328374835,1717279837959,-284.51111494,0.00014,2]
[328374836,1717279838008,-775.896,0.00014,2]
[328374893,1717279841056,-84730.99949981,0.00014,2]
[328374894,1717279841068,-586.473876,0.00014,2]
[328374895,1717279841080,-680.52614211,0.00014,2]
[328374896,1717279841091,-378.1299995,0.00014,2]
[328374897,1717279841102,-5069.60930225,0.00014,2]
[328374898,1717279841114,-27616.12792005,0.00014,2]
[328374899,1717279841125,-4855.09641126,0.00014,2]
[328374900,1717279841196,-468.67992952,0.00014,2]
[328374901,1717279841208,-1058.52056441,0.00014,2]
[328374902,1717279841219,-261954.75754372,0.00014,2]
[328374903,1717279841229,-1056.9538824,0.00014,2]
[328374904,1717279841241,-300.78424672,0.00014,2]
[328374905,1717279841252,-382.16499999,0.00014,2]
[328374906,1717279841263,-1861.48759822,0.00014,2]
[328374907,1717279841275,-681.33262632,0.00014,2]
[328374910,1717279842782,-748.12442162,0.00014,2]
[328374911,1717279842978,-42650.57999998,0.00014,2]
[328374912,1717279842990,-13056.84408954,0.00014,2]
[328374913,1717279843001,-4346.61522739,0.00014,2]
[328374914,1717279843112,-7462.7467006,0.00014,2]
[328374915,1717279846007,-270.462826,0.00014,2]
[328374916,1717279846207,-1748.9835148,0.00014,2]
[328374917,1717279846220,-418.73404577,0.00014,2]
[328374919,1717279859810,452.19863709,0.00012459,2]
[328374920,1717279962312,389.73,0.00013539,2]
[328374921,1717280002452,500.0,0.0001343,2]
[328374922,1717280003093,500.0,0.00013431,2]